bitfinex/quotes_SOLUSD_20250718
["timestamp","ask_amount","ask_price","bid_price","bid_amount"]
[1752873490601,6.08138267,176.83,176.81,41.24]
[1752873490805,6.75138267,176.82,176.8,0.03]
[1752873491007,6.08138267,176.81,176.8,0.03]
[1752873491219,0.67,176.82,176.8,0.03]
[1752873491511,6.75138267,176.82,176.8,0.03]
[1752873491923,6.08138267,176.81,176.8,0.03]
[1752873492426,6.3256504,176.82,176.8,0.03]
[1752873492808,12.40703307,176.82,176.8,0.03]
[1752873493010,6.08138267,176.81,176.8,0.03]
[1752873493212,6.75138267,176.81,176.8,0.03]
[1752873493809,12.40717136,176.81,176.8,0.03]
[1752873497915,6.32578869,176.81,176.8,0.03]
[1752873498115,12.40717136,176.81,176.8,0.03]
[1752873498724,6.32578869,176.81,176.8,0.03]
[1752873499034,12.40717136,176.81,176.8,0.03]
[1752873500841,6.32578869,176.81,176.8,0.03]
[1752873501139,12.40717136,176.81,176.8,0.03]
[1752873503312,16.62276122,176.81,176.8,0.03]
[1752873503718,57.94276122,176.81,176.8,0.03]
[1752873504151,57.94276122,176.81,176.76,0.03]
[1752873504152,6.08138267,176.77,176.76,0.03]
[1752873504449,5.65642853,176.79,176.76,0.03]
[1752873504818,6.74138267,176.78,176.76,0.03]
[1752873505130,6.08138267,176.77,176.76,0.03]
[1752873505348,6.74138267,176.77,176.76,0.03]
[1752873506024,42.02,176.77,176.76,0.03]
[1752873506230,48.10138267,176.77,176.76,0.03]
[1752873506426,47.6770685,176.77,176.76,0.03]
[1752873506825,53.75845117,176.77,176.76,0.03]
[1752873507023,47.6770685,176.77,176.76,0.03]
[1752873507340,53.75845117,176.77,176.76,1e-08]
[1752873507639,57.97188383,176.77,176.76,1e-08]
[1752873508232,53.75845117,176.77,176.76,1e-08]
[1752873508846,12.39845117,176.77,176.76,1e-08]
[1752873509056,51.88907521,176.77,176.76,1e-08]
[1752873509220,53.75845117,176.77,176.76,1e-08]
[1752873511558,1.6431,176.76,176.72,0.03]
[1752873511759,6.08138267,176.73,176.72,0.03]
[1752873511950,41.36,176.73,176.72,0.03]
[1752873512751,78.3073525,176.73,176.63,0.71]
[1752873512943,6.08138267,176.64,176.63,0.03]
[1752873513127,11.74261455,176.64,176.63,0.03]
[1752873513647,5.66099761,176.65,176.63,0.71]
[1752873513839,5.66099761,176.65,176.63,0.03]
[1752873514049,41.36,176.68,176.64,6.76138267]
[1752873514355,41.36,176.68,176.65,0.68]
[1752873514565,41.36,176.68,176.67,6.08138267]
[1752873514871,31.65921262,176.71,176.67,6.76138267]
[1752873515159,47.01861412,176.73,176.7,6.08138267]
[1752873515449,47.01861412,176.73,176.67,6.08138267]
[1752873515450,5.65861412,176.73,176.72,6.08138267]
[1752873515663,5.65861412,176.73,176.72,6.76138267]
[1752873516163,5.65861412,176.73,176.7,0.68]
[1752873516454,12.39999679,176.73,176.67,0.68]
[1752873516660,6.74138267,176.72,176.67,6.76138267]
[1752873516858,6.74138267,176.72,176.68,0.68]
[1752873516859,6.08138267,176.72,176.68,0.68]
[1752873517035,19.80448635,176.73,176.69,0.68]
[1752873517257,25.88586902,176.73,176.69,0.68]
[1752873518366,25.88586902,176.73,176.67,0.68]
[1752873518367,6.08138267,176.72,176.67,0.68]
[1752873518568,6.74138267,176.72,176.67,6.76138267]
[1752873518776,48.10138267,176.72,176.67,6.76138267]
[1752873518974,42.02,176.72,176.67,6.76138267]
[1752873519283,41.36,176.72,176.68,6.76138267]
[1752873519696,5.6589893,176.71,176.68,0.68]
[1752873519979,5.6589893,176.71,176.69,0.03]
[1752873520168,6.3189893,176.71,176.69,0.03]
[1752873520370,5.6589893,176.71,176.69,0.03]
[1752873521014,5.6589893,176.71,176.7,0.68]
[1752873521171,5.65872455,176.72,176.7,6.76138267]
[1752873521367,2.82239853,176.73,176.71,6.76138267]
[1752873521569,5.65827021,176.74,176.72,6.76138267]
[1752873521772,5.65770862,176.75,176.72,6.76138267]
[1752873522371,31.65747317,176.76,176.73,0.68]
[1752873522563,5.65747317,176.76,176.74,6.76138267]
[1752873522771,5.65747317,176.76,176.75,0.68]
[1752873523163,5.71719085,176.77,176.75,0.68]
[1752873523565,5.71719085,176.77,176.76,0.68]
[1752873523775,0.06,176.77,176.76,0.68]
[1752873524495,0.06,176.77,176.74,0.68]
[1752873524791,0.06,176.77,176.74,6.76138267]
[1752873524997,0.06,176.77,176.74,6.08138267]
[1752873525182,0.06,176.77,176.75,0.68]
[1752873525975,2.91728501,176.77,176.75,0.68]
[1752873527206,2.91728501,176.77,176.76,0.7]
[1752873527896,8.57435351,176.77,176.76,0.7]
[1752873528511,8.07435351,176.77,176.76,0.7]
[1752873528699,2.41728501,176.77,176.76,0.7]
[1752873528886,5.6570685,176.77,176.76,0.7]
[1752873529095,5.65642853,176.79,176.76,0.7]
[1752873529669,8.4876465,176.79,176.76,0.7]
[1752873529983,14.56902917,176.79,176.76,0.7]
[1752873530180,8.4876465,176.79,176.76,0.7]
[1752873530600,2.83121797,176.79,176.78,6.08138267]
[1752873530772,2.83121797,176.79,176.78,6.78138267]
[1752873531077,0.06,176.81,176.78,6.78138267]
[1752873531397,0.06,176.81,176.8,6.08138267]
[1752873531800,0.06,176.81,176.8,6.78138267]
[1752873532275,2.90536274,176.81,176.8,6.78138267]
[1752873532476,0.06,176.81,176.8,6.78138267]
[1752873536480,2.84685916,176.81,176.8,6.78138267]
[1752873537799,0.06,176.81,176.8,6.78138267]
[1752873540213,0.06,176.81,176.8,0.7]
[1752873540421,2.9175263,176.81,176.78,8.39158267]
[1752873540590,0.06,176.81,176.79,0.7]
[1752873541108,0.06,176.81,176.76,0.7]
[1752873541407,0.06,176.81,176.8,6.08138267]
[1752873541592,0.06,176.81,176.8,6.78138267]
[1752873542512,0.06,176.81,176.8,12.43749126]
[1752873542811,0.06,176.81,176.8,30.88857523]
[1752873543616,0.06,176.81,176.8,24.80719256]
[1752873543981,0.06,176.81,176.8,30.88857523]
[1752873544188,0.06,176.81,176.8,19.15108397]
[1752873544385,0.06,176.81,176.8,25.23246664]
[1752873546883,0.06,176.81,176.8,24.80719256]
[1752873547087,0.06,176.81,176.8,30.88857523]
[1752873550810,0.06,176.81,176.8,24.80719256]
[1752873551006,0.06,176.81,176.8,30.88857523]
[1752873551423,0.06,176.81,176.8,24.80719256]
[1752873551721,0.06,176.81,176.8,30.88857523]
[1752873559320,0.06,176.81,176.8,24.80719256]
[1752873559522,0.06,176.81,176.78,6.08138267]
[1752873559831,0.06,176.81,176.79,41.68]
[1752873560005,0.06,176.81,176.79,42.39]
[1752873560211,0.06,176.81,176.79,41.68]
[1752873560509,0.06,176.81,176.79,42.39]
[1752873561422,0.06,176.81,176.79,48.47138267]
[1752873563434,0.06,176.81,176.8,0.71]
[1752873563740,0.06,176.81,176.8,23.57606664]
[1752873564110,0.06,176.81,176.8,29.23217523]
[1752873564310,0.06,176.85,176.84,16.78468397]
[1752873564511,0.06,176.85,176.84,64.84606664]
[1752873564812,0.06,176.85,176.84,65.55606664]
[1752873566116,0.06,176.85,176.84,71.21089586]
[1752873575826,0.06,176.85,176.84,77.85776145]
[1752873576149,0.06,176.85,176.84,77.29227853]
[1752873577229,0.06,176.85,176.84,65.12951319]
[1752873577449,0.06,176.85,176.84,77.29227853]
[1752873578515,0.06,176.85,176.84,71.21089586]
[1752873579441,0.06,176.85,176.84,29.23089586]
[1752873579632,0.06,176.85,176.84,70.99089586]
[1752873588458,0.06,176.85,176.84,77.07227853]
[1752873589638,0.06,176.85,176.84,70.99089586]
[1752873590945,0.06,176.85,176.84,77.07227853]
[1752873600475,0.06,176.85,176.84,70.99089586]
[1752873600674,0.06,176.85,176.84,77.07227853]
[1752873603093,0.06,176.85,176.84,70.99089586]
[1752873603269,0.06,176.85,176.84,77.07227853]
[1752873603689,0.06,176.85,176.84,28.52089586]
[1752873603902,0.06,176.85,176.84,63.81951319]
[1752873604064,0.06,176.85,176.84,69.90089586]
[1752873604573,0.06,176.85,176.84,58.16468397]
[1752873604789,0.73,176.85,176.84,41.36]
[1752873604980,0.06,176.85,176.84,41.36]
[1752873605276,12.46591637,176.85,176.81,0.03]
[1752873605593,6.08138267,176.83,176.81,0.03]
[1752873605773,6.08138267,176.82,176.81,0.03]
[1752873605966,6.75138267,176.82,176.81,0.03]
[1752873606594,8.35998267,176.82,176.81,0.03]
[1752873606800,6.5201,176.81,176.77,0.03]
[1752873606974,6.08138267,176.78,176.77,0.03]
[1752873607378,6.75138267,176.78,176.73,0.03]
[1752873607579,6.08138267,176.74,176.7,41.38]
[1752873607781,6.08138267,176.73,176.7,41.38]
[1752873607979,0.67,176.72,176.69,0.03]
[1752873608189,6.75138267,176.72,176.69,0.03]
[1752873608585,0.67,176.71,176.69,0.03]
[1752873609101,11.73989144,176.73,176.69,0.03]
[1752873609304,0.67,176.7,176.69,0.03]
[1752873609893,6.75138267,176.7,176.68,0.03]
[1752873610199,6.08138267,176.69,176.68,0.03]
[1752873610402,6.75138267,176.69,176.68,0.03]
[1752873610899,12.41101253,176.69,176.68,0.03]
[1752873611488,6.32962986,176.69,176.68,0.03]
[1752873611689,12.41101253,176.69,176.68,0.03]
[1752873612000,6.32962986,176.69,176.68,0.03]
[1752873612204,12.41101253,176.69,176.68,0.03]
[1752873613876,0.67,176.69,176.68,0.03]
[1752873616192,12.41101253,176.69,176.68,0.03]
[1752873617679,6.32962986,176.69,176.68,0.03]
[1752873617902,12.41101253,176.69,176.68,0.03]
[1752873618096,6.32962986,176.69,176.68,0.03]
[1752873618994,5.6570685,176.77,176.68,12.4311149]
[1752873619197,166.66227548,176.78,176.68,12.4311149]
[1752873619198,12.1919254,176.78,176.76,6.08138267]
[1752873619384,0.7,176.78,176.72,0.66]
[1752873619582,6.5351,176.82,176.77,6.08138267]
[1752873619784,0.7,176.81,176.76,6.08138267]
[1752873619994,12.43677534,176.83,176.77,0.66]
[1752873620380,6.781383,176.83,176.77,0.66]
[1752873620910,6.781383,176.83,176.81,6.08138267]
[1752873621091,6.781383,176.83,176.81,8.86487716]
[1752873621092,12.43663046,176.83,176.81,8.86487716]
[1752873621410,5.65491306,176.84,176.82,8.86487716]
[1752873621586,6.35491306,176.84,176.82,8.86487716]
[1752873621784,5.71453717,176.85,176.83,8.86487716]
[1752873622108,0.06,176.85,176.84,8.86487716]
[1752873622284,0.06,176.85,176.84,26.30956113]
[1752873624003,0.76,176.85,176.82,16.78468397]
[1752873624204,0.06,176.85,176.83,8.86487716]
[1752873624388,0.06,176.85,176.81,26.0]
[1752873624389,0.06,176.85,176.82,16.78468397]
[1752873624885,0.76,176.85,176.82,8.86487716]
[1752873625088,0.76,176.85,176.81,26.0]
[1752873625588,0.06,176.85,176.83,8.86487716]
[1752873626215,0.06,176.85,176.84,8.86487716]
[1752873626415,0.76,176.85,176.81,34.86487716]
[1752873626635,0.06,176.85,176.82,8.86487716]
[1752873626790,0.06,176.85,176.83,8.86487716]
[1752873627100,0.06,176.85,176.84,8.86487716]
[1752873632700,0.06,176.85,176.83,0.66]
[1752873632926,0.06,176.85,176.84,8.86487716]
[1752873634414,0.06,176.85,176.84,9.52487716]
[1752873635623,0.06,176.85,176.84,8.86487716]
[1752873636623,0.06,176.85,176.83,8.86487716]
[1752873637409,0.06,176.85,176.84,8.86487716]
[1752873639134,0.76,176.85,176.82,8.86487716]
[1752873639639,0.7,176.84,176.81,8.86487716]
[1752873640342,0.7,176.84,176.82,8.86487716]
[1752873640515,5.71465206,176.85,176.83,8.86487716]
[1752873640715,6.41465206,176.85,176.83,8.86487716]
[1752873642347,6.41465206,176.85,176.82,8.86487716]
[1752873642712,0.76,176.85,176.82,8.86487716]
[1752873642912,0.76,176.85,176.82,5.43940785]
[1752873643536,0.06,176.85,176.84,5.43940785]
[1752873643714,0.06,176.85,176.84,22.88409182]
[1752873643913,0.06,176.85,176.84,0.66]
[1752873644231,0.06,176.85,176.84,5.43940785]
[1752873644636,0.06,176.85,176.84,6.09940785]
[1752873645512,0.06,176.85,176.84,11.75423707]
[1752873646329,0.06,176.85,176.84,17.19364492]
[1752873647141,0.06,176.85,176.84,15.17146929]
[1752873647525,0.06,176.85,176.84,41.17146929]
[1752873650622,0.06,176.85,176.84,57.95615326]
[1752873650829,0.06,176.85,176.84,59.57955326]
[1752873652252,0.06,176.85,176.84,99.23615326]
[1752873657632,0.06,176.85,176.84,98.57615326]
[1752873657830,0.06,176.85,176.82,5.65536976]
[1752873658147,0.76,176.85,176.83,50.13664007]
[1752873658349,0.76,176.85,176.83,41.28]
[1752873658817,0.7,176.84,176.83,41.28]
[1752873659648,0.06,176.85,176.83,41.28]
[1752873660020,0.76,176.85,176.83,41.28]
[1752873660237,0.76,176.85,176.83,50.13664007]
[1752873660622,0.06,176.85,176.83,41.28]
[1752873660830,0.06,176.88,176.84,26.90680696]
[1752873661039,0.06,176.88,176.87,25.64132404]
[1752873661227,0.06,176.88,176.87,66.92132404]
[1752873661824,0.06,176.88,176.87,67.62132404]
[1752873662024,0.06,176.88,176.87,58.76468397]
[1752873662249,0.06,176.88,176.87,66.92132404]
[1752873662431,0.06,176.88,176.87,67.62132404]
[1752873662831,0.06,176.88,176.87,73.27519411]
[1752873664964,0.06,176.88,176.87,73.25519411]
[1752873665252,0.06,176.88,176.87,82.11183418]
[1752873665457,0.06,176.88,176.87,73.25519411]
[1752873665960,0.06,176.88,176.87,72.55519411]
[1752873666252,0.06,176.88,176.87,66.90132404]
[1752873666952,0.06,176.88,176.87,50.11664007]
[1752873667255,0.06,176.88,176.87,41.26]
[1752873667554,0.76,176.88,176.86,41.26]
[1752873667858,0.06,176.88,176.86,41.26]
[1752873668040,9.55664007,176.87,176.82,16.78468397]
[1752873668234,0.7,176.86,176.81,16.78468397]
[1752873668452,0.7,176.85,176.82,41.26]
[1752873668762,9.55664007,176.87,176.82,50.11664007]
[1752873669258,0.7,176.86,176.82,41.26]
[1752873669444,8.85664007,176.84,176.82,41.26]
[1752873669638,9.55664007,176.83,176.79,16.78468397]
[1752873669952,0.7,176.83,176.8,41.26]
[1752873670159,6.35389569,176.87,176.82,8.85664007]
[1752873670337,0.7,176.87,176.85,8.85664007]
[1752873670657,0.06,176.88,176.86,9.55664007]
[1752873670858,0.06,176.88,176.87,66.90132404]
[1752873671183,0.06,176.88,176.87,73.25519411]
[1752873673336,0.06,176.88,176.87,66.90132404]
[1752873673542,0.06,176.88,176.87,67.60132404]
[1752873674053,0.06,176.88,176.87,58.74468397]
[1752873674263,0.06,176.88,176.87,67.60132404]
[1752873674754,0.06,176.88,176.87,73.25519411]
[1752873678959,0.06,176.88,176.87,16.78468397]
[1752873679127,0.06,176.88,176.87,73.26519411]
[1752873680231,0.06,176.88,176.87,67.61132404]
[1752873680743,0.06,176.88,176.87,66.90132404]
[1752873682540,0.06,176.88,176.87,58.04468397]
[1752873682868,0.06,176.88,176.87,50.11664007]
[1752873683065,0.06,176.88,176.87,41.26]
[1752873683253,0.76,176.88,176.87,50.11664007]
[1752873683464,0.06,176.88,176.87,50.11664007]
[1752873687770,0.06,176.88,176.87,41.26]
[1752873687962,0.06,176.88,176.87,50.11664007]
[1752873689072,0.06,176.88,176.87,46.69642628]
[1752873692474,0.06,176.88,176.87,41.26]
[1752873692675,0.06,176.88,176.87,46.69642628]
[1752873695559,0.06,176.88,176.87,69.84498032]
[1752873698661,0.06,176.88,176.87,78.20176732]
[1752873698662,1e-08,176.88,176.87,78.20176732]
[1752873698878,0.06,176.89,176.88,48.43823439]
[1752873699085,0.06,176.89,176.88,49.14823439]
[1752873699264,0.06,176.89,176.88,54.58466067]
[1752873699758,0.06,176.92,176.88,68.71853674]
[1752873700065,0.06,176.92,176.91,16.78468397]
[1752873700270,26.0,176.91,176.87,42.4]
[1752873700472,26.0,176.91,176.86,42.48]
[1752873700782,0.7,176.9,176.86,47.91642628]
[1752873701202,0.7,176.89,176.86,42.48]
[1752873701375,37.08918702,176.91,176.86,42.48]
[1752873701376,26.7,176.91,176.86,47.91642628]
[1752873701578,0.7,176.9,176.86,47.91642628]
[1752873702078,26.0,176.91,176.88,5.43642628]
[1752873702288,26.7,176.91,176.88,5.43642628]
[1752873702495,26.06,176.92,176.9,5.43642628]
[1752873702658,26.06,176.92,176.88,42.5]
[1752873702859,26.06,176.92,176.9,5.43642628]
[1752873703094,0.06,176.92,176.9,5.43642628]
[1752873703262,4.28758085,176.92,176.9,5.43642628]
[1752873703785,4.28758085,176.92,176.91,5.43642628]
[1752873704389,0.06,176.92,176.91,6.14642628]
[1752873704890,0.06,176.92,176.91,5.43642628]
[1752873707394,0.06,176.92,176.91,42.38]
[1752873707968,0.06,176.92,176.9,47.81642628]
[1752873708371,0.06,176.92,176.91,5.43642628]
[1752873709779,0.06,176.92,176.9,42.38]
[1752873709996,0.06,176.92,176.91,5.43642628]
[1752873710903,0.06,176.92,176.9,47.81642628]
[1752873711704,0.76,176.92,176.9,42.38]
[1752873711901,0.06,176.92,176.9,42.38]
[1752873712073,0.7,176.91,176.9,42.38]
[1752873712595,0.7,176.91,176.87,5.43642628]
[1752873712778,0.7,176.91,176.85,0.72]
[1752873712779,6.35259171,176.91,176.88,47.77642628]
[1752873714094,5.7123649,176.92,176.89,5.43642628]
[1752873714395,6.4123649,176.92,176.89,5.43642628]
[1752873716076,6.4123649,176.92,176.89,5.46642628]
[1752873718000,0.06,176.92,176.89,5.46642628]
[1752873718191,0.06,176.92,176.9,6.15642628]
[1752873718391,0.06,176.92,176.91,5.43642628]
[1752873718585,0.06,176.92,176.91,6.15642628]
[1752873719881,0.06,176.92,176.91,22.94111025]
[1752873720089,0.06,176.92,176.91,28.59370196]
[1752873723792,0.06,176.92,176.91,47.57642628]
[1752873724390,0.06,176.92,176.91,48.29642628]
[1752873724992,0.06,176.92,176.91,47.57642628]
[1752873725185,0.06,176.92,176.91,42.14]
[1752873725394,0.76,176.92,176.91,42.14]
[1752873725594,0.76,176.92,176.89,47.92642628]
[1752873725802,0.76,176.92,176.89,42.49]
[1752873726607,6.41237164,176.92,176.89,42.49]
[1752873727179,0.06,176.92,176.9,5.43642628]
[1752873727699,0.06,176.92,176.91,5.43642628]
[1752873728202,0.06,176.92,176.91,6.15642628]
[1752873729211,0.06,176.92,176.91,11.80901799]
[1752873731283,0.06,176.92,176.91,49.15727568]
[1752873731516,0.06,176.92,176.91,54.59370196]
[1752873731821,0.06,176.92,176.91,65.49727568]
[1752873731993,0.06,176.92,176.91,70.93370196]
[1752873734102,2.38490735,176.95,176.92,16.78468397]
[1752873734286,26.7,176.99,176.94,5.43642628]
[1752873734489,0.7,176.98,176.91,5.65259171]
[1752873734700,0.7,176.98,176.93,5.43642628]
[1752873734888,6.13642628,176.98,176.93,5.43642628]
[1752873735112,6.35074172,176.97,176.93,5.43642628]
[1752873735318,6.35074172,176.97,176.94,5.43642628]
[1752873736218,9.19175749,176.97,176.94,5.43642628]
[1752873736722,9.19175749,176.97,176.93,5.43642628]
[1752873736920,9.19175749,176.97,176.94,5.43642628]
[1752873737845,9.19175749,176.97,176.93,6.12642628]
[1752873738050,9.19175749,176.97,176.93,5.43642628]
[1752873738720,0.7,176.96,176.93,5.43642628]
[1752873739516,0.7,176.96,176.94,5.43642628]
[1752873739745,0.7,176.96,176.93,5.43642628]
[1752873740251,8.49175749,176.97,176.93,5.46642628]
[1752873740617,9.19175749,176.97,176.93,5.46642628]
[1752873740845,2.84101577,176.97,176.95,5.43642628]
[1752873741216,5.71045315,176.98,176.95,5.43642628]
[1752873741433,6.41045315,176.98,176.95,5.43642628]
[1752873741950,6.41045315,176.98,176.94,6.12642628]
[1752873742146,6.41045315,176.98,176.94,5.43642628]
[1752873742340,0.7,176.97,176.94,5.43642628]
[1752873742519,5.71045315,176.98,176.94,5.43642628]
[1752873742720,6.41045315,176.98,176.94,5.43642628]
[1752873743626,0.7,176.97,176.93,0.72]
[1752873743826,0.7,176.97,176.94,5.43642628]
[1752873744720,3.54553743,176.97,176.94,5.43642628]
[1752873744923,0.7,176.97,176.94,5.43642628]
[1752873745332,31.43642628,176.99,176.94,5.43642628]
[1752873745532,31.43642628,176.99,176.94,6.12642628]
[1752873746332,26.0,176.99,176.95,5.43642628]
[1752873747137,5.65045315,176.98,176.95,5.43642628]
[1752873747316,31.65013624,176.99,176.95,5.43642628]
[1752873747745,5.15013624,176.99,176.95,6.12642628]
[1752873748151,7.95921778,176.99,176.96,6.12642628]
[1752873748447,7.95921778,176.99,176.95,5.43642628]
[1752873748646,7.95921778,176.99,176.96,0.69]
[1752873748943,7.95921778,176.99,176.97,0.69]
[1752873749246,2.80908154,176.99,176.98,0.69]
[1752873749446,6.44814545,177.0,176.96,5.43642628]
[1752873749947,6.44814545,177.0,176.96,6.12642628]
[1752873750728,0.7984,177.0,176.96,0.69]
[1752873751029,0.7984,177.0,176.96,6.12642628]
[1752873751633,0.7984,177.0,176.97,0.69]
[1752873751832,0.7984,177.0,176.96,5.43642628]
[1752873752040,0.7984,177.0,176.96,6.12642628]
[1752873752749,5.43642628,176.99,176.93,0.03]
[1752873752933,5.43642628,176.99,176.94,5.43642628]
[1752873753133,5.43642628,176.99,176.95,0.69]
[1752873753334,5.43642628,176.99,176.95,6.12642628]
[1752873753644,11.0865856,176.99,176.95,6.12642628]
[1752873754050,5.65015932,176.99,176.95,6.12642628]
[1752873754342,5.65015932,176.99,176.93,0.03]
[1752873754343,5.43642628,176.96,176.93,0.03]
[1752873754527,10.87285256,176.94,176.93,0.03]
[1752873754731,53.55285256,176.94,176.93,0.03]
[1752873754933,48.11642628,176.94,176.93,0.03]
[1752873755344,48.0030327,176.94,176.93,0.03]
[1752873755546,53.65466602,176.94,176.93,0.03]
[1752873755937,53.7680596,176.94,176.93,0.03]
[1752873756446,5.65163332,176.94,176.93,0.03]
[1752873756654,53.7480596,176.94,176.93,0.03]
[1752873757950,11.0880596,176.94,176.93,0.03]
[1752873758139,53.6880596,176.94,176.93,0.03]
[1752873759426,11.0880596,176.94,176.93,0.03]
[1752873759626,201.5480596,176.94,176.93,0.03]
[1752873761462,206.98448588,176.94,176.93,0.03]
[1752873763755,196.11163332,176.94,176.93,0.03]
[1752873763956,206.98448588,176.94,176.93,0.03]
[1752873764155,201.5480596,176.94,176.93,0.03]
[1752873765457,53.6480596,176.94,176.93,0.03]
[1752873766058,59.08448588,176.94,176.93,0.03]
[1752873766441,73.21356918,176.94,176.89,0.03]
[1752873766651,5.43642628,176.9,176.89,0.03]
[1752873766939,47.79642628,176.9,176.89,0.03]
[1752873767459,53.44933752,176.9,176.89,0.03]
[1752873770668,53.44933752,176.9,176.89,1e-08]
[1752873771274,70.23402149,176.9,176.89,1e-08]
[1752873771461,96.23402149,176.9,176.89,1e-08]
[1752873772353,53.87402149,176.9,176.89,1e-08]
[1752873772581,96.11402149,176.9,176.89,1e-08]
[1752873773657,96.09402149,176.9,176.89,1e-08]
[1752873774766,31.65291124,176.9,176.89,1e-08]
[1752873774948,79.30933752,176.9,176.89,1e-08]
[1752873775146,79.30933752,176.9,176.89,0.72000001]
[1752873775147,73.83291124,176.9,176.89,0.72000001]
[1752873775540,73.83291124,176.9,176.89,6.15642629]
[1752873775758,5.65195274,176.93,176.89,6.15642629]
[1752873776068,42.16,176.92,176.91,5.43642628]
[1752873776295,47.81227221,176.92,176.91,6.15642628]
[1752873776846,5.65227221,176.92,176.91,6.15642628]
[1752873777046,5.65227221,176.92,176.91,0.72]
[1752873777258,5.65227221,176.92,176.91,6.15642628]
[1752873777568,47.79198799,176.93,176.91,6.15642628]
[1752873777771,5.65198799,176.93,176.92,6.15642628]
[1752873778143,195.69173804,176.94,176.92,6.15642628]
[1752873778476,195.69173804,176.94,176.93,6.15642628]
[1752873778637,147.9,176.99,176.93,5.43642628]
[1752873778842,42.12,176.98,176.96,5.43642628]
[1752873779073,42.12,176.98,176.97,0.72]
[1752873780043,42.12,176.98,176.95,0.72]
[1752873780259,42.12,176.98,176.94,5.43642628]
[1752873780569,5.65067525,176.97,176.96,0.72]
[1752873781350,5.65067525,176.97,176.9,11.66740269]
[1752873781563,5.65067525,176.97,176.94,6.15642628]
[1752873781872,5.65067525,176.97,176.94,0.72]
[1752873782059,5.65067525,176.97,176.95,6.15642628]
[1752873782260,5.65067525,176.97,176.96,0.72]
[1752873783393,45.90886256,177.0,176.96,6.15642628]
[1752873783563,3.62886256,177.0,176.97,6.15642628]
[1752873783884,3.62886256,177.0,176.98,0.72]
[1752873784075,9.27863388,177.0,176.98,0.72]
[1752873785563,9.27863388,177.0,176.99,0.72]
[1752873785966,9.27863388,177.0,176.97,6.15642628]
[1752873786287,9.27863388,177.0,176.98,0.72]
[1752873787085,9.27863388,177.0,176.96,5.43642628]
[1752873787086,9.27863388,177.0,176.99,0.72]
[1752873787453,3.62886256,177.0,176.99,0.72]
[1752873788152,9.27858007,177.0,176.99,0.72]
[1752873789189,3.62886256,177.0,176.99,0.72]
[1752873789480,9.27858007,177.0,176.99,0.72]
[1752873790968,14.71500635,177.0,176.97,0.72]
[1752873791154,47.71642628,176.99,176.98,0.72]
[1752873791355,57.07500635,177.0,176.98,0.72]
[1752873791786,5.43642628,176.99,176.96,0.72]
[1752873791969,51.63858007,177.0,176.96,0.72]
[1752873792155,57.07500635,177.0,176.96,0.72]
[1752873792584,51.63858007,177.0,176.96,0.72]
[1752873792763,57.07500635,177.0,176.96,0.72]
[1752873793285,5.43642628,176.97,176.93,0.03]
[1752873793495,47.77642628,176.97,176.96,0.72]
[1752873794298,42.34,176.97,176.96,0.72]
[1752873794596,42.28,176.99,176.96,0.72]
[1752873795111,5.65035597,176.98,176.96,6.15642628]
[1752873795283,5.65035597,176.98,176.97,0.72]
[1752873795605,11.08678225,176.98,176.95,0.65]
[1752873795791,5.43642628,176.97,176.93,0.68]
[1752873797169,47.71642628,176.97,176.93,0.68]
[1752873797378,5.65099457,176.96,176.94,0.65]
[1752873798602,5.65099457,176.96,176.95,0.65]
[1752873799978,47.93074841,176.97,176.95,0.65]
[1752873800192,9.06528884,177.0,176.95,6.08642628]